bitfinex/quotes_SOLUSD_20250802
["timestamp","ask_amount","ask_price","bid_price","bid_amount"]
[1754130794152,71.70593706,163.19,163.18,0.06]
[1754130796574,49.5025344,163.19,163.18,0.75]
[1754130796862,47.2127877,163.19,163.18,0.75]
[1754130799361,47.2127877,163.19,163.18,6.16871869]
[1754130799537,47.2127877,163.19,163.18,0.75]
[1754130799964,47.2127877,163.19,163.18,6.16871869]
[1754130800280,47.21185462,163.19,163.18,0.75]
[1754130801688,3.99185462,163.19,163.18,6.16871869]
[1754130801857,43.22,163.2,163.18,6.16871869]
[1754130802182,43.22,163.2,163.19,6.10871869]
[1754130802341,47.2124814,163.2,163.19,6.10871869]
[1754130803753,3.99279722,163.2,163.19,6.10871869]
[1754130804658,0.03,163.21,163.19,6.10871869]
[1754130804985,0.03,163.21,163.2,6.10871869]
[1754130805698,4.02347602,163.21,163.2,6.10871869]
[1754130806585,4.02466954,163.21,163.2,6.10871869]
[1754130807052,4.02466954,163.21,163.2,5.41871869]
[1754130808251,6.31821893,163.21,163.2,5.41871869]
[1754130808973,4.02466954,163.21,163.2,5.41871869]
[1754130809182,4.02466954,163.21,163.2,6.10871869]
[1754130811175,0.03,163.21,163.2,6.10871869]
[1754130811360,0.03,163.21,163.2,0.69]
[1754130811560,4.02616318,163.21,163.18,0.74]
[1754130811781,43.2,163.2,163.19,5.41871869]
[1754130812993,0.03,163.21,163.19,6.09871869]
[1754130813201,0.03,163.21,163.2,6.09871869]
[1754130813202,43.23,163.21,163.2,6.09871869]
[1754130813581,47.78390318,163.21,163.2,6.09871869]
[1754130813992,0.03,163.21,163.2,6.09871869]
[1754130814304,0.03,163.21,163.2,11.51743738]
[1754130816509,0.03,163.24,163.2,11.51743738]
[1754130816712,0.03,163.23,163.21,0.68]
[1754130816877,0.03,163.23,163.22,5.41871869]
[1754130817285,0.03,163.23,163.22,6.09871869]
[1754130817905,0.2,163.25,163.24,26.0]
[1754130818207,0.03,163.26,163.25,31.41871869]
[1754130818510,8.56949441,163.26,163.25,31.41871869]
[1754130818812,4.02041488,163.26,163.25,32.09871869]
[1754130821201,0.03,163.26,163.25,32.09871869]
[1754130821917,0.03,163.26,163.25,31.41871869]
[1754130822282,4.01739233,163.26,163.25,32.09871869]
[1754130822513,0.03,163.26,163.25,32.09871869]
[1754130824079,0.03,163.28,163.25,37.51743738]
[1754130824278,0.03,163.28,163.27,10.83743738]
[1754130824678,0.03,163.28,163.27,11.51743738]
[1754130825093,0.03,163.3,163.27,11.51743738]
[1754130825295,0.03,163.3,163.29,31.41871869]
[1754130825519,0.2,163.35,163.29,31.41871869]
[1754130825802,0.2,163.35,163.34,5.41871869]
[1754130826520,0.2,163.35,163.34,6.09871869]
[1754130832802,0.2,163.35,163.32,26.0]
[1754130833009,0.2,163.35,163.34,5.41871869]
[1754130833530,0.87,163.35,163.33,5.41871869]
[1754130833689,0.2,163.35,163.33,5.41871869]
[1754130833892,0.67,163.34,163.33,5.41871869]
[1754130834714,0.2,163.35,163.33,5.41871869]
[1754130835016,0.87,163.35,163.33,5.41871869]
[1754130835221,0.67,163.34,163.28,31.41871869]
[1754130835410,0.2,163.35,163.33,5.41871869]
[1754130835791,0.87,163.35,163.33,5.41871869]
[1754130836920,0.2,163.35,163.34,5.41871869]
[1754130837324,0.2,163.35,163.31,0.68]
[1754130837508,0.67,163.34,163.33,5.41871869]
[1754130837703,0.67,163.34,163.28,26.0]
[1754130837902,49.24871869,163.34,163.3,5.41871869]
[1754130838104,43.16,163.34,163.3,5.41871869]
[1754130838310,0.67,163.33,163.31,5.41871869]
[1754130838624,43.16,163.34,163.31,5.41871869]
[1754130838927,43.83,163.34,163.31,5.41871869]
[1754130839111,43.83,163.34,163.32,5.41871869]
[1754130840027,43.83,163.34,163.31,5.41871869]
[1754130840228,43.83,163.34,163.29,0.68]
[1754130840532,0.67,163.33,163.31,5.41871869]
[1754130841101,43.16,163.34,163.31,5.41871869]
[1754130841338,6.08871869,163.33,163.28,0.06]
[1754130841522,5.41871869,163.31,163.28,0.06]
[1754130842028,5.41871869,163.32,163.28,0.06]
[1754130842328,0.67,163.31,163.28,0.06]
[1754130842534,43.83,163.34,163.29,5.41871869]
[1754130842832,43.83,163.34,163.28,0.74]
[1754130842833,17.65468397,163.35,163.28,0.06]
[1754130843141,43.16,163.33,163.3,0.68]
[1754130843343,43.16,163.33,163.32,5.41871869]
[1754130843701,43.16,163.33,163.32,6.09871869]
[1754130844428,43.16,163.33,163.32,5.41871869]
[1754130847335,43.16,163.33,163.3,0.68]
[1754130847539,43.16,163.33,163.32,5.41871869]
[1754130851325,43.16,163.34,163.32,6.09871869]
[1754130851526,43.16,163.34,163.33,5.41871869]
[1754130852646,43.16,163.34,163.32,5.41871869]
[1754130852863,0.67,163.33,163.28,0.74]
[1754130853031,6.08871869,163.33,163.28,5.47871869]
[1754130853230,0.67,163.32,163.28,5.47871869]
[1754130854026,43.83,163.34,163.3,5.41871869]
[1754130854225,43.83,163.34,163.3,6.09871869]
[1754130854739,43.16,163.34,163.32,5.41871869]
[1754130855449,0.2,163.35,163.32,5.41871869]
[1754130855647,43.16,163.34,163.32,5.41871869]
[1754130855847,43.16,163.34,163.33,5.41871869]
[1754130856223,43.19,163.34,163.32,5.41871869]
[1754130856645,43.19,163.34,163.28,0.74]
[1754130856956,0.67,163.33,163.29,5.41871869]
[1754130857255,6.08871869,163.33,163.28,5.47871869]
[1754130857426,0.67,163.32,163.28,5.47871869]
[1754130857625,43.16,163.31,163.28,5.47871869]
[1754130858562,43.16,163.31,163.29,5.41871869]
[1754130859455,43.16,163.31,163.28,0.06]
[1754130859456,43.16,163.31,163.3,5.41871869]
[1754130860150,43.16,163.31,163.29,5.41871869]
[1754130861437,43.16,163.31,163.28,0.74]
[1754130861641,43.16,163.31,163.29,5.41871869]
[1754130861851,42.98631145,163.31,163.29,5.41871869]
[1754130862235,0.67,163.3,163.28,0.06]
[1754130862758,0.67,163.29,163.28,0.06]
[1754130862926,0.67,163.3,163.28,0.06]
[1754130864054,42.98631145,163.31,163.28,0.06]
[1754130864546,43.65631145,163.31,163.28,0.06]
[1754130866744,3.97126546,163.3,163.28,0.06]
[1754130867053,43.65631145,163.31,163.28,0.06]
[1754130867255,3.97344805,163.3,163.28,0.06]
[1754130867454,43.65631145,163.31,163.28,0.06]
[1754130867658,3.97315307,163.3,163.28,0.06]
[1754130867867,43.65631145,163.31,163.28,0.06]
[1754130868173,4.64315296,163.3,163.28,0.06]
[1754130868357,43.65631145,163.31,163.28,0.06]
[1754130868566,3.97413483,163.3,163.28,0.06]
[1754130868747,42.98631145,163.31,163.29,5.41871869]
[1754130868954,42.98631145,163.31,163.28,6.15871869]
[1754130869644,42.98631145,163.31,163.29,6.09871869]
[1754130869834,42.98631145,163.31,163.29,5.41871869]
[1754130870953,42.98631145,163.31,163.3,5.41871869]
[1754130871355,0.03,163.34,163.3,5.41871869]
[1754130871356,0.03,163.34,163.3,6.10871869]
[1754130871557,47.13665452,163.33,163.31,6.10871869]
[1754130871757,43.16,163.33,163.31,6.10871869]
[1754130872880,43.16,163.33,163.32,6.10871869]
[1754130875144,43.16,163.33,163.32,5.41871869]
[1754130875773,47.80773132,163.33,163.3,5.41871869]
[1754130875966,43.83,163.33,163.3,5.41871869]
[1754130877570,43.16,163.33,163.31,5.41871869]
[1754130877760,43.16,163.33,163.31,6.10871869]
[1754130878853,43.16,163.33,163.32,6.10871869]
[1754130879252,0.03,163.34,163.32,6.10871869]
[1754130879555,43.14,163.33,163.32,6.10871869]
[1754130879863,0.03,163.34,163.32,6.10871869]
[1754130880057,43.14,163.33,163.32,5.41871869]
[1754130882260,43.14,163.33,163.32,6.10871869]
[1754130882960,0.03,163.34,163.32,6.10871869]
[1754130883150,0.03,163.34,163.33,0.69]
[1754130883750,0.03,163.34,163.33,6.10871869]
[1754130889258,0.03,163.34,163.33,5.41871869]
[1754130889486,0.03,163.34,163.33,6.10871869]
[1754130890988,0.03,163.37,163.36,26.0]
[1754130891290,0.2,163.38,163.36,37.52743738]
[1754130891584,0.2,163.38,163.37,6.10871869]
[1754130893267,0.2,163.38,163.37,8.56157769]
[1754130894588,0.2,163.38,163.34,0.69]
[1754130894778,0.2,163.38,163.37,5.41871869]
[1754130894973,0.87,163.38,163.37,5.41871869]
[1754130895168,0.87,163.38,163.34,0.69]
[1754130895369,0.87,163.38,163.37,5.41871869]
[1754130895599,0.2,163.38,163.37,5.41871869]
[1754130896289,0.87,163.38,163.36,5.41871869]
[1754130896475,0.67,163.37,163.32,0.69]
[1754130896677,0.67,163.37,163.33,5.41871869]
[1754130896884,6.08871869,163.37,163.33,5.41871869]
[1754130897092,0.67,163.36,163.33,5.41871869]
[1754130898070,0.67,163.35,163.33,5.41871869]
[1754130899504,5.61871869,163.38,163.33,5.41871869]
[1754130899802,0.67,163.37,163.33,5.41871869]
[1754130900000,0.67,163.36,163.33,5.41871869]
[1754130900212,0.87,163.38,163.33,0.69]
[1754130900377,43.12,163.37,163.34,5.41871869]
[1754130900788,43.12,163.37,163.35,5.41871869]
[1754130901407,0.2,163.38,163.36,5.41871869]
[1754130901581,0.67,163.37,163.32,0.67]
[1754130901779,0.67,163.37,163.34,5.41871869]
[1754130902687,0.67,163.36,163.34,5.41871869]
[1754130902883,0.67,163.35,163.31,0.06]
[1754130903073,5.41871869,163.33,163.31,0.06]
[1754130903274,43.79,163.34,163.31,0.06]
[1754130903505,6.08871869,163.32,163.31,0.06]
[1754130903716,0.67,163.32,163.31,0.06]
[1754130903901,49.20871869,163.34,163.31,0.06]
[1754130904206,43.12,163.34,163.31,0.06]
[1754130904502,43.12,163.34,163.31,5.47871869]
[1754130904700,43.12,163.34,163.31,0.06]
[1754130904904,43.79,163.34,163.31,0.06]
[1754130906298,43.12,163.34,163.31,0.06]
[1754130906481,43.12,163.34,163.32,5.41871869]
[1754130906680,43.12,163.34,163.31,0.73]
[1754130907001,43.12,163.34,163.32,5.41871869]
[1754130908792,43.12,163.34,163.31,5.47871869]
[1754130909687,43.12,163.34,163.31,6.14871869]
[1754130910513,43.12,163.34,163.32,5.41871869]
[1754130910680,43.12,163.34,163.33,6.08871869]
[1754130910881,43.12,163.34,163.33,5.41871869]
[1754130911793,0.03,163.37,163.33,6.08871869]
[1754130911985,0.03,163.37,163.31,0.06]
[1754130911986,43.15,163.37,163.36,5.41871869]
[1754130914109,43.82,163.37,163.31,26.73]
[1754130914314,43.82,163.37,163.33,5.41871869]
[1754130914900,43.15,163.37,163.35,5.41871869]
[1754130915405,43.15,163.37,163.36,6.08871869]
[1754130916305,0.03,163.37,163.36,11.50743738]
[1754130916682,0.03,163.37,163.36,6.08871869]
[1754130917883,0.03,163.37,163.36,11.50743738]
[1754130921907,0.2,163.38,163.36,11.50743738]
[1754130922103,0.2,163.38,163.37,6.08871869]
[1754130922713,0.2,163.39,163.37,6.08871869]
[1754130922896,0.2,163.39,163.38,32.08871869]
[1754130929325,0.2,163.39,163.38,31.41871869]
[1754130929995,0.2,163.39,163.38,26.0]
[1754130930314,0.2,163.39,163.38,5.41871869]
[1754130933604,0.86,163.39,163.34,26.78]
[1754130933811,0.86,163.39,163.38,5.41871869]
[1754130934009,0.66,163.38,163.37,5.41871869]
[1754130936037,0.2,163.39,163.37,5.41871869]
[1754130936333,0.2,163.39,163.38,5.41871869]
[1754130943324,0.2,163.39,163.38,6.13871869]
[1754130947148,0.2,163.39,163.38,5.41871869]
[1754130947357,0.2,163.39,163.38,6.13871869]
[1754130949835,0.2,163.41,163.4,26.0]
[1754130950036,0.2,163.41,163.4,31.41871869]
[1754130950349,0.2,163.41,163.39,26.0]
[1754130950555,0.2,163.41,163.4,5.41871869]
[1754130952634,0.86,163.41,163.39,5.41871869]
[1754130952954,5.20143748,163.4,163.38,5.41871869]
[1754130953155,0.66,163.4,163.38,5.41871869]
[1754130953347,0.2,163.41,163.38,5.41871869]
[1754130953553,4.54242537,163.4,163.38,5.41871869]
[1754130953752,0.86,163.41,163.38,5.41871869]
[1754130953938,4.54242537,163.4,163.37,5.41871869]
[1754130954130,0.86,163.41,163.37,5.41871869]
[1754130954331,8.51012293,163.4,163.37,5.41871869]
[1754130954554,0.86,163.41,163.37,5.41871869]
[1754130954738,8.5101257,163.4,163.37,5.41871869]
[1754130954933,8.50925434,163.39,163.37,5.41871869]
[1754130955165,4.54630519,163.38,163.36,0.06]
[1754130955475,8.5116364,163.37,163.36,0.06]
[1754130955626,14.59035509,163.37,163.36,0.06]
[1754130955832,14.59035509,163.37,163.34,0.06]
[1754130955833,16.78468397,163.36,163.34,0.06]
[1754130956031,33.00564186,163.35,163.34,0.06]
[1754130956253,33.61564186,163.35,163.34,0.06]
[1754130959741,39.73746616,163.35,163.34,0.06]
[1754130960059,42.78468397,163.32,163.31,0.06]
[1754130960271,102.08564186,163.32,163.31,0.06]
[1754130960442,102.69564186,163.32,163.31,0.06]
[1754130960947,105.69017672,163.32,163.31,0.06]
[1754130961140,109.77309051,163.32,163.31,0.06]
[1754130961775,102.68368706,163.32,163.31,0.06]
[1754130962971,98.14844161,163.32,163.31,0.06]
[1754130963150,102.67421237,163.32,163.31,0.06]
[1754130963870,106.74485191,163.32,163.31,0.06]
[1754130964068,102.67421237,163.32,163.31,0.06]
[1754130964274,106.744897,163.32,163.31,0.06]
[1754130964461,102.67421237,163.32,163.31,0.06]
[1754130964656,106.74016198,163.32,163.31,0.06]
[1754130965477,108.92930933,163.32,163.31,0.06]
[1754130965973,117.50797814,163.32,163.31,0.06]
[1754130966278,115.44762855,163.32,163.31,0.06]
[1754130966449,115.44461217,163.32,163.31,0.06]
[1754130966654,121.56756098,163.32,163.31,0.06]
[1754130966862,111.40502933,163.32,163.31,0.06]
[1754130967066,115.46461217,163.32,163.31,0.06]
[1754130967355,111.40502933,163.32,163.31,0.06]
[1754130967856,117.52797814,163.32,163.31,0.06]
[1754130968059,121.58466269,163.32,163.31,0.06]
[1754130969078,121.56189717,163.32,163.31,0.06]
[1754130969263,117.50521262,163.32,163.31,0.06]
[1754130969860,117.50521262,163.32,163.29,0.06]
[1754130969861,26.78468397,163.31,163.29,0.06]
[1754130970068,42.78468397,163.27,163.21,0.9]
[1754130970274,99.77256413,163.27,163.21,0.9]
[1754130970586,103.5798184,163.27,163.21,0.9]
[1754130970957,103.5798184,163.27,163.22,0.7]
[1754130971354,102.9698184,163.27,163.21,0.2]
[1754130971673,102.9698184,163.27,163.23,0.7]
[1754130972253,103.5798184,163.27,163.23,0.7]
[1754130972570,103.5798184,163.27,163.21,0.9]
[1754130972774,103.5798184,163.27,163.22,0.7]
[1754130974252,102.9698184,163.27,163.21,0.2]
[1754130974470,102.9698184,163.27,163.26,0.76]
[1754130974678,97.55109971,163.27,163.26,0.76]
[1754130978187,77.49484679,163.27,163.26,0.76]
[1754130978365,43.1,163.27,163.26,0.76]
[1754130980065,48.51871869,163.27,163.26,0.76]
[1754130980565,43.1,163.27,163.26,0.76]
[1754130980980,43.1,163.27,163.26,0.06]
[1754130981165,48.51871869,163.27,163.26,0.06]
[1754130981985,56.90257541,163.27,163.26,0.06]
[1754130982163,73.68725938,163.27,163.26,0.06]
[1754130982370,99.68725938,163.27,163.26,0.06]
[1754130983797,74.29725938,163.27,163.26,0.06]
[1754130984366,74.29725938,163.27,163.21,0.2]
[1754130984367,80.41976016,163.27,163.21,0.2]
[1754130984589,22.20340266,163.22,163.21,0.2]
[1754130984780,73.68493625,163.22,163.21,0.2]
[1754130985092,74.29493625,163.22,163.21,0.2]
[1754130986376,78.1780154,163.22,163.21,0.2]
[1754130986680,74.286435,163.22,163.21,0.2]
[1754130987370,80.41313515,163.22,163.21,0.2]
[1754130987566,85.83185384,163.22,163.19,0.2]
[1754130987786,53.62212135,163.2,163.19,0.2]
[1754130987991,105.09515369,163.2,163.19,0.2]
[1754130988219,105.70515369,163.2,163.19,0.2]
[1754130989385,22.91251042,163.19,163.18,0.06]
[1754130989588,37.31426145,163.19,163.18,0.06]
[1754130990181,42.78468397,163.17,163.16,0.06]
[1754130990403,99.676435,163.17,163.16,0.06]
[1754130990593,100.286435,163.17,163.16,0.06]
[1754130991398,169.01393866,163.16,163.14,0.2]
[1754130991710,73.696435,163.15,163.14,0.2]
[1754130991912,74.306435,163.15,163.14,0.2]
[1754130992314,73.696435,163.15,163.14,0.2]
[1754130997327,25.15771631,163.15,163.14,0.86]
[1754130997483,73.696435,163.15,163.14,0.86]
[1754130997678,99.696435,163.15,163.14,0.86]
[1754130999187,77.49303234,163.15,163.14,0.86]
[1754131000610,99.696435,163.15,163.14,0.86]
[1754131000815,76.8954756,163.15,163.14,0.2]
[1754131001312,76.8954756,163.15,163.14,0.86]
[1754131001511,16.78468397,163.14,163.13,0.1]
[1754131001724,25.15771631,163.14,163.13,0.1]
[1754131001904,30.576435,163.14,163.13,0.1]
[1754131002307,51.49303234,163.14,163.13,0.1]
[1754131003705,51.49303234,163.14,163.13,0.76]
[1754131003908,56.91175103,163.14,163.13,0.76]
[1754131004109,51.49303234,163.14,163.13,0.76]
[1754131005514,8.37303234,163.14,163.13,6.17871869]
[1754131005695,51.49303234,163.14,163.13,6.17871869]
[1754131009130,51.49303234,163.14,163.13,0.1]
[1754131010409,51.49303234,163.14,163.13,0.76]
[1754131010908,51.49303234,163.14,163.13,6.17871869]
[1754131011532,3.19837177,163.19,163.13,6.17871869]
[1754131011726,47.6337702,163.18,163.13,0.1]
[1754131012041,0.03,163.16,163.13,0.1]
[1754131012910,0.03,163.16,163.15,5.41871869]
[1754131013104,4.5439621,163.16,163.15,5.41871869]
[1754131014204,0.03,163.16,163.15,5.41871869]
[1754131014839,0.03,163.16,163.13,0.1]
[1754131015016,43.86,163.16,163.15,5.41871869]
[1754131015522,43.86,163.16,163.14,5.41871869]
[1754131015717,43.86,163.16,163.13,5.51871869]
[1754131015908,0.71,163.15,163.13,5.51871869]
[1754131016115,43.12,163.14,163.13,0.1]
[1754131016429,43.12,163.14,163.13,5.51871869]
[1754131018136,43.83,163.14,163.13,0.1]
[1754131020136,43.12,163.14,163.13,5.51871869]
[1754131020644,0.03,163.16,163.13,5.51871869]
[1754131020834,0.03,163.16,163.15,5.41871869]
[1754131029651,0.7,163.16,163.13,0.1]
[1754131029947,0.7,163.16,163.15,5.41871869]
[1754131030533,0.03,163.16,163.15,5.41871869]
[1754131032131,0.7,163.16,163.15,5.41871869]
[1754131032329,0.03,163.16,163.15,5.41871869]
[1754131038458,0.7,163.16,163.15,5.41871869]
[1754131039465,0.03,163.16,163.15,5.41871869]
[1754131045532,0.7,163.16,163.15,5.41871869]
[1754131048628,8.26080409,163.16,163.14,5.41871869]
[1754131048833,5.21509768,163.15,163.14,5.41871869]
[1754131050135,4.54509768,163.15,163.14,5.41871869]
[1754131050336,0.03,163.16,163.14,5.41871869]
[1754131050571,0.03,163.16,163.15,5.41871869]
[1754131053569,0.03,163.18,163.15,5.41871869]
[1754131053779,0.03,163.18,163.17,5.41871869]
[1754131053973,4.58687991,163.18,163.17,5.41871869]
[1754131055361,0.03,163.18,163.17,5.41871869]
[1754131057290,0.71,163.18,163.17,5.41871869]
[1754131058070,0.03,163.18,163.17,5.41871869]
[1754131058789,0.68,163.27,163.2,26.0]
[1754131058976,8.26412573,163.26,163.2,31.41871869]
[1754131059178,0.68,163.26,163.25,5.41871869]
[1754131059364,8.26120287,163.26,163.25,5.41871869]
[1754131060289,8.26120287,163.26,163.15,149.48468397]
[1754131060596,8.26120287,163.25,163.16,26.0]
[1754131060801,8.26120287,163.24,163.22,5.41871869]
[1754131061002,5.23633068,163.23,163.22,5.41871869]
[1754131061288,8.25975789,163.23,163.22,5.41871869]
[1754131063282,8.25975789,163.23,163.21,5.41871869]
[1754131063478,8.25975789,163.22,163.21,5.41871869]
[1754131065093,4.55633068,163.22,163.21,5.41871869]
[1754131065405,5.23633068,163.22,163.21,5.41871869]
[1754131065986,5.23633068,163.22,163.16,26.0]
[1754131066181,8.25527992,163.21,163.2,5.41871869]
[1754131066393,8.25526688,163.21,163.18,5.41871869]
[1754131066703,0.68,163.2,163.18,5.41871869]
[1754131067493,0.68,163.2,163.19,5.41871869]
[1754131069805,8.24358142,163.2,163.17,5.41871869]
[1754131070103,8.24358142,163.19,163.17,5.41871869]
[1754131070285,5.22634211,163.18,163.13,0.1]
[1754131070485,0.68,163.18,163.17,5.41871869]
[1754131070690,5.22621255,163.18,163.17,5.41871869]
[1754131071099,5.22621255,163.18,163.13,0.1]
[1754131071418,43.08,163.22,163.13,0.1]
[1754131071618,7.56349087,163.21,163.18,5.41871869]
[1754131071916,8.24349087,163.2,163.18,5.41871869]
[1754131072100,4.54638698,163.19,163.13,0.1]
[1754131072299,0.68,163.2,163.18,5.41871869]
[1754131072499,5.2257748,163.19,163.13,0.1]
[1754131072711,0.68,163.19,163.13,0.1]
[1754131073621,0.68,163.19,163.18,5.41871869]
[1754131073913,5.22574064,163.19,163.18,5.41871869]
[1754131074103,8.24225824,163.19,163.13,0.1]
[1754131074305,5.22574064,163.18,163.17,5.41871869]
[1754131074800,5.22574064,163.18,163.16,5.41871869]
[1754131074989,0.68,163.17,163.16,5.41871869]
[1754131076091,4.54546435,163.17,163.16,5.41871869]
[1754131076510,0.68,163.19,163.16,5.41871869]
[1754131076713,4.54568797,163.18,163.15,0.06]
[1754131076894,26.68,163.21,163.15,0.06]
[1754131077220,7.56241547,163.2,163.15,0.06]
[1754131077412,7.56241547,163.19,163.15,26.06]
[1754131077611,4.54579161,163.18,163.15,26.06]
[1754131077800,0.68,163.21,163.17,5.41871869]
[1754131078000,4.54616989,163.2,163.15,26.06]
[1754131078211,0.68,163.21,163.15,26.06]
[1754131078414,4.54660142,163.2,163.15,26.06]
[1754131078594,0.68,163.21,163.15,26.06]
[1754131078794,4.54675008,163.2,163.15,26.06]
[1754131079016,0.68,163.21,163.15,26.06]
[1754131079218,4.54675008,163.2,163.15,26.06]
[1754131079420,5.22635012,163.19,163.15,26.06]
[1754131079624,0.68,163.18,163.15,26.06]
[1754131080293,0.68,163.17,163.15,0.06]
[1754131080497,0.03,163.2,163.16,5.41871869]
[1754131080692,7.56301039,163.19,163.16,5.41871869]
[1754131080936,0.03,163.2,163.15,0.06]
[1754131080937,5.20617107,163.18,163.15,5.47871869]
[1754131081109,5.20602282,163.17,163.15,0.06]
[1754131081318,0.66,163.17,163.15,0.06]
[1754131081516,0.66,163.16,163.15,0.06]
[1754131082115,43.08,163.18,163.15,5.47871869]
[1754131082317,8.22124969,163.17,163.16,5.41871869]
[1754131082533,4.54533567,163.17,163.16,5.41871869]
[1754131082713,4.54533567,163.17,163.15,0.06]
[1754131083036,43.08,163.18,163.16,5.41871869]
[1754131083209,4.54507944,163.17,163.16,5.41871869]
[1754131083530,7.56081056,163.17,163.16,5.41871869]
[1754131083732,8.22081056,163.17,163.16,5.41871869]
[1754131083909,8.22081056,163.17,163.15,5.47871869]
[1754131084109,5.20508241,163.16,163.15,5.47871869]
[1754131084408,8.2205162,163.16,163.15,0.06]
[1754131084841,8.2205162,163.16,163.15,5.47871869]
[1754131085209,5.20508241,163.16,163.15,5.47871869]
[1754131087840,4.54508241,163.16,163.15,5.47871869]
[1754131088046,5.20508241,163.16,163.15,5.47871869]
[1754131088426,4.54508241,163.16,163.15,5.47871869]
[1754131088620,5.20508241,163.16,163.15,5.47871869]
[1754131089349,4.54508241,163.16,163.15,5.47871869]
[1754131090558,5.20508241,163.16,163.15,5.47871869]
[1754131091567,5.20508241,163.16,163.15,0.06]
[1754131091731,5.20508241,163.16,163.15,5.47871869]
[1754131092651,5.20508241,163.16,163.15,0.06]
[1754131094399,5.20508241,163.16,163.15,5.47871869]
[1754131094586,5.20508241,163.16,163.15,0.06]
[1754131094785,8.22342868,163.16,163.15,0.06]
[1754131096852,30.42683134,163.16,163.15,0.06]
[1754131099281,32.71780621,163.16,163.15,0.06]
[1754131099677,30.42683134,163.16,163.15,0.06]
[1754131099860,32.71780621,163.16,163.15,0.06]
[1754131100201,30.42683134,163.16,163.15,0.06]
[1754131101680,73.52683134,163.16,163.15,0.06]
[1754131105308,75.81653341,163.16,163.15,0.06]
[1754131109130,42.78468397,163.14,163.13,0.1]
[1754131109423,98.86683134,163.14,163.12,0.06]
[1754131109583,13.64214737,163.13,163.12,0.06]
[1754131111723,30.42683134,163.13,163.12,0.06]
[1754131112023,48.35236347,163.13,163.12,0.06]
[1754131112259,41.34514007,163.12,163.1,0.06]
[1754131112391,16.78468397,163.1,163.08,0.06]
[1754131112594,62.45888051,163.11,163.08,0.06]
[1754131112595,75.15708222,163.09,163.08,0.06]
[1754131112907,75.80708222,163.09,163.08,0.06]
[1754131113096,73.51683134,163.09,163.08,0.06]
[1754131113299,75.80608722,163.09,163.08,0.06]
[1754131113901,79.88895546,163.09,163.08,0.06]
[1754131114121,42.78468397,163.05,163.04,0.2]
[1754131114307,98.86683134,163.05,163.04,0.2]
[1754131114505,101.80464726,163.05,163.04,0.2]
[1754131114890,104.88114535,163.05,163.04,0.2]
[1754131115127,109.82816902,163.05,163.04,0.2]
[1754131115613,109.79391123,163.05,163.04,0.2]
[1754131116043,115.92699923,163.05,163.04,0.2]
[1754131116249,267.44571792,163.05,163.04,0.2]
[1754131116416,271.52057766,163.05,163.04,0.2]
[1754131117725,265.38748966,163.05,163.04,0.2]
[1754131118133,261.31262992,163.05,163.04,0.2]
[1754131118446,259.96195652,163.05,163.04,0.2]
[1754131119140,250.47519254,163.05,163.04,0.2]
[1754131119547,255.89391123,163.05,163.04,0.2]
[1754131120233,253.60609531,163.05,163.04,0.2]
[1754131120757,255.88267359,163.05,163.04,0.2]
[1754131121050,271.49723094,163.05,163.04,0.2]
[1754131121358,270.63508268,163.05,163.04,0.2]
[1754131122545,280.63508268,163.05,163.04,0.2]
[1754131123046,143.80137311,163.05,163.04,0.2]
[1754131123352,162.88468397,163.04,163.03,0.1]
[1754131123543,183.52654324,163.04,163.03,0.1]